{"text_format":"1","workbook":"xlsx","n_sheets":10,"sheets":["基礎入力画面","入力画面","入力画面　技術資格者名簿 ","入札参加資格取得申請書","申請概要（その１）","申請概要（その２）","技術者総括表","マスタ","マクロ有効化案内","資格者集計ワーク"],"not_rendered":{"charts":0,"images":1,"macros":1,"external_links":0,"defined_names":90,"comments":5,"pivot_tables":0},"unopened":[],"bounds":{"document_bytes":16777216,"sheet_cells":100000,"rows_first":2000,"rows_last":500,"rows_between":2000,"halvings":0,"cell_chars":16384,"cell_head_chars":4096},"cells_cut":0,"cells_raw":0,"read":"whole","date_system":"1900"}

{"sheet":"基礎入力画面","index":0,"n_rows":61,"n_cols":52,"rows_kept":61,"cut":false,"hidden":true,"merged":[[14,16,14,24],[10,1,31,1],[10,2,12,2],[11,4,11,6],[11,8,11,11],[14,4,14,12],[29,2,31,2],[18,2,20,2],[15,4,15,12],[15,16,15,24],[18,8,18,16],[18,17,18,46],[19,4,19,7],[19,8,19,16],[19,17,19,46],[0,1,0,47],[4,4,4,11],[6,2,8,2],[7,4,7,6],[7,8,7,11],[39,4,39,8],[22,4,22,28],[24,4,24,28],[26,4,26,28],[27,4,27,28],[29,15,31,19],[30,4,30,13],[30,20,30,29],[36,4,36,46],[33,2,34,2],[33,4,34,13],[33,15,34,19],[33,20,34,29],[33,30,34,43],[53,4,53,28],[41,1,61,1],[42,2,44,2],[43,4,43,6],[43,8,43,11],[43,13,43,33],[45,4,45,12],[45,16,45,24],[46,4,46,12],[46,16,46,24],[49,2,51,2],[49,8,49,16],[49,17,49,46],[50,4,50,7],[50,8,50,16],[50,17,50,46],[55,4,55,28],[57,4,57,28],[58,4,58,28],[60,2,62,2],[60,15,62,19],[61,4,61,13],[61,20,61,29]]}
[null,"競争入札参加資格審査申請（漏水調査） 基礎入力画面",null,null,null,null,null,null,null,null,null,null,null,null,null,null,null,null,null,null,null,null,null,null,null,null,null,null,null,null,null,null,null,null,null,null,null,null,null,null,null,null,null,null,null,null,null,null,null,null,null,"入力チェック"]
[]
[]
[]
[null,null,"申請区分"]
[]
[null,null,"業者番号"]
[null,null,null,null,"B",null,null,"-",null,null,null,null,null,null,null,null,null,null,null,null,null,null,null,null,null,null,null,null,null,null,null,null,null,null,null,null,null,null,null,null,null,null,null,null,null,null,null,null,null,false]
[]
[]
[null,"本店","郵便番号"]
[null,null,null,null,null,null,null,"-"]
[]
[]
[null,null,null,null,"都道府県コード",null,null,null,null,null,null,null,null,null,null,null,"市町村コード"]
[null,null,"住所コード"]
[]
[]
[null,null,"所在地",null,"都道府県名",null,null,null,"市町村名",null,null,null,null,null,null,null,null,"町名以下"]
[]
[]
[]
[null,null,"(フリガナ)"]
[]
[null,null,"商号名称"]
[]
[null,null,"(フリガナ)"]
[null,null,"代表者名"]
[]
[null,null,"電話番号",null,null,null,null,null,null,null,null,null,null,null,null,"FAX番号"]
[]
[]
[]
[null,null,"緊急連絡先\n（携帯電話）",null,null,null,null,null,null,null,null,null,null,null,null,"緊急連絡先氏名",null,null,null,null,null,null,null,null,null,null,null,null,null,null,"※緊急連絡先、緊急連絡先氏名は、本店所在地が那覇市内業者のみ入力"]
[]
[]
[null,null,"メールアドレス"]
[]
[]
[null,null,"支店有無"]
[]
[null,"支店登録",null,null,"※沖縄県内の業者で那覇市内に支店がある場合、又は、沖縄県外の業者で沖縄県内に支店がある場合、入力"]
[null,null,"郵便番号"]
[null,null,null,null,null,null,null,"-",null,null,null,null,null,"※市内業者の入力不可"]
[]
[null,null,null,null,"都道府県コード",null,null,null,null,null,null,null,null,null,null,null,"市町村コード"]
[null,null,"住所コード"]
[]
[]
[null,null,"所在地",null,"都道府県名",null,null,null,"市町村名",null,null,null,null,null,null,null,null,"町名以下"]
[]
[]
[]
[null,null,"(フリガナ)"]
[]
[null,null,"支店・営業所名"]
[]
[null,null,"（フリガナ）"]
[null,null,"支店長・\n所長"]
[]
[null,null,"電話番号",null,null,null,null,null,null,null,null,null,null,null,null,"FAX番号"]

{"sheet":"入力画面","index":1,"n_rows":31,"n_cols":8,"rows_kept":31,"cut":false,"hidden":true,"merged":[[0,0,0,6]]}
["入力画面",null,null,null,null,null,null,"入力チェック"]
[]
[]
[]
[]
[]
["経営規模等総括表等登録内容"]
[]
["大中小企業の別"]
["資本金",null,"（千円）"]
["自己資本",null,"（千円）"]
["営業年数",null,"年"]
["那覇市内での営業年数",null,"年"]
[]
["事業所の概要（直近２年実績高）"]
["期間",null,"～",null,"実績高",null,"円"]
["期間",null,"～",null,"実績高",null,"円"]
[]
["保険等内容"]
["労働災害保険"]
["雇用保険"]
["健康保険・厚生年金"]
[]
["税登録内容"]
["那覇市課税"]
["消費税"]
[]
["雇用の規模及び障害者雇用人数"]
["雇用の規模",null,"人"]
["常用雇用障害者の数",null,"人"]
["障害者法定雇用義務の達成状況","09 義務無し"]

{"sheet":"入力画面　技術資格者名簿 ","index":2,"n_rows":206,"n_cols":18,"rows_kept":206,"cut":false,"hidden":true,"merged":[[0,0,0,3],[5,4,5,14],[7,4,7,7],[7,9,7,14],[18,4,18,7],[18,9,18,14],[19,4,19,7],[19,9,19,14],[4,2,4,3],[4,0,5,0],[4,1,5,1],[20,4,20,7],[20,9,20,14],[13,4,13,7],[13,9,13,14],[16,4,16,7],[16,9,16,14],[17,4,17,7],[17,9,17,14],[24,4,24,7],[24,9,24,14],[25,4,25,7],[25,9,25,14],[26,4,26,7],[26,9,26,14],[21,4,21,7],[21,9,21,14],[22,4,22,7],[22,9,22,14],[23,4,23,7],[23,9,23,14],[34,4,34,7],[34,9,34,14],[35,4,35,7],[35,9,35,14],[36,4,36,7],[36,9,36,14],[27,4,27,7],[27,9,27,14],[28,4,28,7],[28,9,28,14],[33,4,33,7],[33,9,33,14],[40,4,40,7],[40,9,40,14],[41,4,41,7],[41,9,41,14],[42,4,42,7],[42,9,42,14],[37,4,37,7],[37,9,37,14],[38,4,38,7],[38,9,38,14],[39,4,39,7],[39,9,39,14],[46,4,46,7],[46,9,46,14],[47,4,47,7],[47,9,47,14],[48,4,48,7],[48,9,48,14],[43,4,43,7],[43,9,43,14],[44,4,44,7],[44,9,44,14],[45,4,45,7],[45,9,45,14],[52,4,52,7],[52,9,52,14],[53,4,53,7],[53,9,53,14],[54,4,54,7],[54,9,54,14],[49,4,49,7],[49,9,49,14],[50,4,50,7],[50,9,50,14],[51,4,51,7],[51,9,51,14],[58,4,58,7],[58,9,58,14],[59,4,59,7],[59,9,59,14],[60,4,60,7],[60,9,60,14],[55,4,55,7],[55,9,55,14],[56,4,56,7],[56,9,56,14],[57,4,57,7],[57,9,57,14],[64,4,64,7],[64,9,64,14],[65,4,65,7],[65,9,65,14],[66,4,66,7],[66,9,66,14],[61,4,61,7],[61,9,61,14],[62,4,62,7],[62,9,62,14],[63,4,63,7],[63,9,63,14],[70,4,70,7],[70,9,70,14],[71,4,71,7],[71,9,71,14],[72,4,72,7],[72,9,72,14],[67,4,67,7],[67,9,67,14],[68,4,68,7],[68,9,68,14],[69,4,69,7],[69,9,69,14],[76,4,76,7],[76,9,76,14],[77,4,77,7],[77,9,77,14],[78,4,78,7],[78,9,78,14],[73,4,73,7],[73,9,73,14],[74,4,74,7],[74,9,74,14],[75,4,75,7],[75,9,75,14],[82,4,82,7],[82,9,82,14],[83,4,83,7],[83,9,83,14],[84,4,84,7],[84,9,84,14],[79,4,79,7],[79,9,79,14],[80,4,80,7],[80,9,80,14],[81,4,81,7],[81,9,81,14],[88,4,88,7],[88,9,88,14],[89,4,89,7],[89,9,89,14],[90,4,90,7],[90,9,90,14],[85,4,85,7],[85,9,85,14],[86,4,86,7],[86,9,86,14],[87,4,87,7],[87,9,87,14],[94,4,94,7],[94,9,94,14],[95,4,95,7],[95,9,95,14],[96,4,96,7],[96,9,96,14],[91,4,91,7],[91,9,91,14],[92,4,92,7],[92,9,92,14],[93,4,93,7],[93,9,93,14],[100,4,100,7],[100,9,100,14],[101,4,101,7],[101,9,101,14],[102,4,102,7],[102,9,102,14],[97,4,97,7],[97,9,97,14],[98,4,98,7],[98,9,98,14],[99,4,99,7],[99,9,99,14],[106,4,106,7],[106,9,106,14],[107,4,107,7],[107,9,107,14],[108,4,108,7],[108,9,108,14],[103,4,103,7],[103,9,103,14],[104,4,104,7],[104,9,104,14],[105,4,105,7],[105,9,105,14],[112,4,112,7],[112,9,112,14],[113,4,113,7],[113,9,113,14],[114,4,114,7],[114,9,114,14],[109,4,109,7],[109,9,109,14],[110,4,110,7],[110,9,110,14],[111,4,111,7],[111,9,111,14],[118,4,118,7],[118,9,118,14],[119,4,119,7],[119,9,119,14],[120,4,120,7],[120,9,120,14],[115,4,115,7],[115,9,115,14],[116,4,116,7],[116,9,116,14],[117,4,117,7],[117,9,117,14],[124,4,124,7],[124,9,124,14],[125,4,125,7],[125,9,125,14],[126,4,126,7],[126,9,126,14],[121,4,121,7],[121,9,121,14],[122,4,122,7],[122,9,122,14],[123,4,123,7],[123,9,123,14],[130,4,130,7],[130,9,130,14],[131,4,131,7],[131,9,131,14],[132,4,132,7],[132,9,132,14],[127,4,127,7],[127,9,127,14],[128,4,128,7],[128,9,128,14],[129,4,129,7],[129,9,129,14],[136,4,136,7],[136,9,136,14],[137,4,137,7],[137,9,137,14],[138,4,138,7],[138,9,138,14],[133,4,133,7],[133,9,133,14],[134,4,134,7],[134,9,134,14],[135,4,135,7],[135,9,135,14],[142,4,142,7],[142,9,142,14],[143,4,143,7],[143,9,143,14],[144,4,144,7],[144,9,144,14],[139,4,139,7],[139,9,139,14],[140,4,140,7],[140,9,140,14],[141,4,141,7],[141,9,141,14],[148,4,148,7],[148,9,148,14],[149,4,149,7],[149,9,149,14],[150,4,150,7],[150,9,150,14],[145,4,145,7],[145,9,145,14],[146,4,146,7],[146,9,146,14],[147,4,147,7],[147,9,147,14],[154,4,154,7],[154,9,154,14],[155,4,155,7],[155,9,155,14],[156,4,156,7],[156,9,156,14],[151,4,151,7],[151,9,151,14],[152,4,152,7],[152,9,152,14],[153,4,153,7],[153,9,153,14],[160,4,160,7],[160,9,160,14],[161,4,161,7],[161,9,161,14],[162,4,162,7],[162,9,162,14],[157,4,157,7],[157,9,157,14],[158,4,158,7],[158,9,158,14],[159,4,159,7],[159,9,159,14],[166,4,166,7],[166,9,166,14],[167,4,167,7],[167,9,167,14],[168,4,168,7],[168,9,168,14],[163,4,163,7],[163,9,163,14],[164,4,164,7],[164,9,164,14],[165,4,165,7],[165,9,165,14],[172,4,172,7],[172,9,172,14],[173,4,173,7],[173,9,173,14],[174,4,174,7],[174,9,174,14],[169,4,169,7],[169,9,169,14],[170,4,170,7],[170,9,170,14],[171,4,171,7],[171,9,171,14],[178,4,178,7],[178,9,178,14],[179,4,179,7],[179,9,179,14],[180,4,180,7],[180,9,180,14],[175,4,175,7],[175,9,175,14],[176,4,176,7],[176,9,176,14],[177,4,177,7],[177,9,177,14],[184,4,184,7],[184,9,184,14],[185,4,185,7],[185,9,185,14],[186,4,186,7],[186,9,186,14],[181,4,181,7],[181,9,181,14],[182,4,182,7],[182,9,182,14],[183,4,183,7],[183,9,183,14],[190,4,190,7],[190,9,190,14],[191,4,191,7],[191,9,191,14],[192,4,192,7],[192,9,192,14],[187,4,187,7],[187,9,187,14],[188,4,188,7],[188,9,188,14],[189,4,189,7],[189,9,189,14],[196,4,196,7],[196,9,196,14],[197,4,197,7],[197,9,197,14],[198,4,198,7],[198,9,198,14],[193,4,193,7],[193,9,193,14],[194,4,194,7],[194,9,194,14],[195,4,195,7],[195,9,195,14],[205,4,205,7],[205,9,205,14],[202,4,202,7],[202,9,202,14],[203,4,203,7],[203,9,203,14],[204,4,204,7],[204,9,204,14],[199,4,199,7],[199,9,199,14],[200,4,200,7],[200,9,200,14],[201,4,201,7],[201,9,201,14]]}
[" 技　術　職　員　有　資　格　者　名　簿　入　力　画　面",null,null,null,null,null,null,null,null,null,null,null,null,null,null,null,null,"入力チェック"]
[]
[null,null,"2024-12-01"," 現在"]
[]
["No.","氏名","漏水調査業務に関する実務経験"]
[null,null,"７年以上","１年以上","基礎年金番号",null,null,null,null,null,null,null,null,null,null,"監理技術者資格者証所有の有無"]
[{"$f":"ROW() - 6","v":1}]
[{"$f":"ROW() - 6","v":2},null,null,null,0,null,null,null,"-",0]
[3]
[4]
[5]
[6]
[7]
[8,null,null,null,0,null,null,null,"-",0]
[9]
[10]
[11,null,null,null,0,null,null,null,"-",0]
[12,null,null,null,0,null,null,null,"-",0]
[13,null,null,null,0,null,null,null,"-",0]
[14,null,null,null,0,null,null,null,"-",0]
[15,null,null,null,0,null,null,null,"-",0]
[16,null,null,null,0,null,null,null,"-",0]
[17,null,null,null,0,null,null,null,"-",0]
[18,null,null,null,0,null,null,null,"-",0]
[19,null,null,null,0,null,null,null,"-",0]
[20,null,null,null,0,null,null,null,"-",0]
[21,null,null,null,0,null,null,null,"-",0]
[22,null,null,null,0,null,null,null,"-",0]
[23,null,null,null,0,null,null,null,"-",0]
[24]
[25]
[26]
[27]
[28,null,null,null,0,null,null,null,"-",0]
[29,null,null,null,0,null,null,null,"-",0]
[30,null,null,null,0,null,null,null,"-",0]
[31,null,null,null,0,null,null,null,"-",0]
[32,null,null,null,0,null,null,null,"-",0]
[33,null,null,null,0,null,null,null,"-",0]
[34,null,null,null,0,null,null,null,"-",0]
[35,null,null,null,0,null,null,null,"-",0]
[36,null,null,null,0,null,null,null,"-",0]
[37,null,null,null,0,null,null,null,"-",0]
[38,null,null,null,0,null,null,null,"-",0]
[39,null,null,null,0,null,null,null,"-",0]
[40,null,null,null,0,null,null,null,"-",0]
[41,null,null,null,0,null,null,null,"-",0]
[42,null,null,null,0,null,null,null,"-",0]
[43,null,null,null,0,null,null,null,"-",0]
[44,null,null,null,0,null,null,null,"-",0]
[45,null,null,null,0,null,null,null,"-",0]
[46,null,null,null,0,null,null,null,"-",0]
[47,null,null,null,0,null,null,null,"-",0]
[48,null,null,null,0,null,null,null,"-",0]
[49,null,null,null,0,null,null,null,"-",0]
[50,null,null,null,0,null,null,null,"-",0]
[51,null,null,null,0,null,null,null,"-",0]
[52,null,null,null,0,null,null,null,"-",0]
[53,null,null,null,0,null,null,null,"-",0]
[54,null,null,null,0,null,null,null,"-",0]
[55,null,null,null,0,null,null,null,"-",0]
[56,null,null,null,0,null,null,null,"-",0]
[57,null,null,null,0,null,null,null,"-",0]
[58,null,null,null,0,null,null,null,"-",0]
[59,null,null,null,0,null,null,null,"-",0]
[60,null,null,null,0,null,null,null,"-",0]
[61,null,null,null,0,null,null,null,"-",0]
[62,null,null,null,0,null,null,null,"-",0]
[63,null,null,null,0,null,null,null,"-",0]
[64,null,null,null,0,null,null,null,"-",0]
[65,null,null,null,0,null,null,null,"-",0]
[{"$f":"ROW() - 6","v":66},null,null,null,0,null,null,null,"-",0]
[67,null,null,null,0,null,null,null,"-",0]
[68,null,null,null,0,null,null,null,"-",0]
[69,null,null,null,0,null,null,null,"-",0]
[70,null,null,null,0,null,null,null,"-",0]
[71,null,null,null,0,null,null,null,"-",0]
[72,null,null,null,0,null,null,null,"-",0]
[73,null,null,null,0,null,null,null,"-",0]
[74,null,null,null,0,null,null,null,"-",0]
[75,null,null,null,0,null,null,null,"-",0]
[76,null,null,null,0,null,null,null,"-",0]
[77,null,null,null,0,null,null,null,"-",0]
[78,null,null,null,0,null,null,null,"-",0]
[79,null,null,null,0,null,null,null,"-",0]
[80,null,null,null,0,null,null,null,"-",0]
[81,null,null,null,0,null,null,null,"-",0]
[82,null,null,null,0,null,null,null,"-",0]
[83,null,null,null,0,null,null,null,"-",0]
[84,null,null,null,0,null,null,null,"-",0]
[85,null,null,null,0,null,null,null,"-",0]
[86,null,null,null,0,null,null,null,"-",0]
[87,null,null,null,0,null,null,null,"-",0]
[88,null,null,null,0,null,null,null,"-",0]
[89,null,null,null,0,null,null,null,"-",0]
[90,null,null,null,0,null,null,null,"-",0]
[91,null,null,null,0,null,null,null,"-",0]
[92,null,null,null,0,null,null,null,"-",0]
[93,null,null,null,0,null,null,null,"-",0]
[94,null,null,null,0,null,null,null,"-",0]
[95,null,null,null,0,null,null,null,"-",0]
[96,null,null,null,0,null,null,null,"-",0]
[97,null,null,null,0,null,null,null,"-",0]
[98,null,null,null,0,null,null,null,"-",0]
[99,null,null,null,0,null,null,null,"-",0]
[100,null,null,null,0,null,null,null,"-",0]
[101,null,null,null,0,null,null,null,"-",0]
[102,null,null,null,0,null,null,null,"-",0]
[103,null,null,null,0,null,null,null,"-",0]
[104,null,null,null,0,null,null,null,"-",0]
[105,null,null,null,0,null,null,null,"-",0]
[106,null,null,null,0,null,null,null,"-",0]
[107,null,null,null,0,null,null,null,"-",0]
[108,null,null,null,0,null,null,null,"-",0]
[109,null,null,null,0,null,null,null,"-",0]
[110,null,null,null,0,null,null,null,"-",0]
[111,null,null,null,0,null,null,null,"-",0]
[112,null,null,null,0,null,null,null,"-",0]
[113,null,null,null,0,null,null,null,"-",0]
[114,null,null,null,0,null,null,null,"-",0]
[115,null,null,null,0,null,null,null,"-",0]
[116,null,null,null,0,null,null,null,"-",0]
[117,null,null,null,0,null,null,null,"-",0]
[118,null,null,null,0,null,null,null,"-",0]
[119,null,null,null,0,null,null,null,"-",0]
[120,null,null,null,0,null,null,null,"-",0]
[121,null,null,null,0,null,null,null,"-",0]
[122,null,null,null,0,null,null,null,"-",0]
[123,null,null,null,0,null,null,null,"-",0]
[124,null,null,null,0,null,null,null,"-",0]
[125,null,null,null,0,null,null,null,"-",0]
[126,null,null,null,0,null,null,null,"-",0]
[127,null,null,null,0,null,null,null,"-",0]
[128,null,null,null,0,null,null,null,"-",0]
[129,null,null,null,0,null,null,null,"-",0]
[{"$f":"ROW() - 6","v":130},null,null,null,0,null,null,null,"-",0]
[131,null,null,null,0,null,null,null,"-",0]
[132,null,null,null,0,null,null,null,"-",0]
[133,null,null,null,0,null,null,null,"-",0]
[134,null,null,null,0,null,null,null,"-",0]
[135,null,null,null,0,null,null,null,"-",0]
[136,null,null,null,0,null,null,null,"-",0]
[137,null,null,null,0,null,null,null,"-",0]
[138,null,null,null,0,null,null,null,"-",0]
[139,null,null,null,0,null,null,null,"-",0]
[140,null,null,null,0,null,null,null,"-",0]
[141,null,null,null,0,null,null,null,"-",0]
[142,null,null,null,0,null,null,null,"-",0]
[143,null,null,null,0,null,null,null,"-",0]
[144,null,null,null,0,null,null,null,"-",0]
[145,null,null,null,0,null,null,null,"-",0]
[146,null,null,null,0,null,null,null,"-",0]
[147,null,null,null,0,null,null,null,"-",0]
[148,null,null,null,0,null,null,null,"-",0]
[149,null,null,null,0,null,null,null,"-",0]
[150,null,null,null,0,null,null,null,"-",0]
[151,null,null,null,0,null,null,null,"-",0]
[152,null,null,null,0,null,null,null,"-",0]
[153,null,null,null,0,null,null,null,"-",0]
[154,null,null,null,0,null,null,null,"-",0]
[155,null,null,null,0,null,null,null,"-",0]
[156,null,null,null,0,null,null,null,"-",0]
[157,null,null,null,0,null,null,null,"-",0]
[158,null,null,null,0,null,null,null,"-",0]
[159,null,null,null,0,null,null,null,"-",0]
[160,null,null,null,0,null,null,null,"-",0]
[161,null,null,null,0,null,null,null,"-",0]
[162,null,null,null,0,null,null,null,"-",0]
[163,null,null,null,0,null,null,null,"-",0]
[164,null,null,null,0,null,null,null,"-",0]
[165,null,null,null,0,null,null,null,"-",0]
[166,null,null,null,0,null,null,null,"-",0]
[167,null,null,null,0,null,null,null,"-",0]
[168,null,null,null,0,null,null,null,"-",0]
[169,null,null,null,0,null,null,null,"-",0]
[170,null,null,null,0,null,null,null,"-",0]
[171,null,null,null,0,null,null,null,"-",0]
[172,null,null,null,0,null,null,null,"-",0]
[173,null,null,null,0,null,null,null,"-",0]
[174,null,null,null,0,null,null,null,"-",0]
[175,null,null,null,0,null,null,null,"-",0]
[176,null,null,null,0,null,null,null,"-",0]
[177,null,null,null,0,null,null,null,"-",0]
[178,null,null,null,0,null,null,null,"-",0]
[179,null,null,null,0,null,null,null,"-",0]
[180,null,null,null,0,null,null,null,"-",0]
[181,null,null,null,0,null,null,null,"-",0]
[182,null,null,null,0,null,null,null,"-",0]
[183,null,null,null,0,null,null,null,"-",0]
[184,null,null,null,0,null,null,null,"-",0]
[185,null,null,null,0,null,null,null,"-",0]
[186,null,null,null,0,null,null,null,"-",0]
[187,null,null,null,0,null,null,null,"-",0]
[188,null,null,null,0,null,null,null,"-",0]
[189,null,null,null,0,null,null,null,"-",0]
[190,null,null,null,0,null,null,null,"-",0]
[191,null,null,null,0,null,null,null,"-",0]
[192,null,null,null,0,null,null,null,"-",0]
[193,null,null,null,0,null,null,null,"-",0]
[{"$f":"ROW() - 6","v":194},null,null,null,0,null,null,null,"-",0]
[195,null,null,null,0,null,null,null,"-",0]
[196,null,null,null,0,null,null,null,"-",0]
[197,null,null,null,0,null,null,null,"-",0]
[198,null,null,null,0,null,null,null,"-",0]
[199,null,null,null,0,null,null,null,"-",0]
[200,null,null,null,0,null,null,null,"-",0]

{"sheet":"入札参加資格取得申請書","index":3,"n_rows":22,"n_cols":23,"rows_kept":22,"cut":false,"hidden":true,"merged":[[12,7,12,34],[1,1,1,47],[9,2,9,4],[9,7,9,34],[11,7,11,34],[29,47,29,56],[30,22,30,26],[14,7,14,24],[15,1,17,1],[15,7,15,24],[19,7,19,37],[21,7,21,17],[21,28,21,37]]}
[]
[null,"入札参加資格取得申請書（漏水調査業務）"]
[]
[]
[null,null,null,"那覇市上下水道事業管理者　　　",null,null,null,null,null,null,null,null,null,null,null,null,null,null,null,"宛"]
[]
[null,null,null,null,"那覇市上下水道局が実施する漏水調査業務の競争入札に関し、その参加資格を得たいので関係書類を添えて申請します。"]
[null,null,null,null,"なお、この入札参加資格取得申請書及び添付書類のすべての記載事項は、事実と相違ないことを誓約します。"]
[]
[null,null,"所在地又は住所",null,null,null,null,{"$f":"IF(ISBLANK(I01_本店都道府県名), \"\", IF(I01_本店都道府県コード=\"47 沖縄県\", \"\", I01_本店都道府県名)) & IF(ISBLANK(I01_本店市町村名),\"\",I01_本店市町村名) & IF(ISBLANK(I01_本店所在地), \"\", I01_本店所在地)","v":""}]
[]
[null,null,"（フリガナ）",null,null,null,null,{"$f":"ASC(IF(ISBLANK(I01_本店商号カナ), \"\", I01_本店商号カナ))","v":""}]
[null,null,"商号又は名称",null,null,null,null,{"$f":"DBCS(IF(ISBLANK(I01_本店商号), \"\", I01_本店商号))","v":""}]
[]
[null,null,"（フリガナ）",null,null,null,null,{"$f":"ASC(IF(ISBLANK(I01_本店代表者カナ), \"\", I01_本店代表者カナ))","v":""}]
[null,null,"代表者氏名",null,null,null,null,{"$f":"DBCS(IF(ISBLANK(I01_本店代表者名), \"\", I01_本店代表者名))","v":""}]
[]
[]
[null,null,"本書提出者"]
[null,null,null,"部署名等"]
[]
[null,null,null,"担当者氏名",null,null,null,null,null,null,null,null,null,null,null,null,null,null,null,null,null,null,"電話番号"]

{"sheet":"申請概要（その１）","index":4,"n_rows":48,"n_cols":55,"rows_kept":48,"cut":false,"hidden":true,"merged":[[11,13,12,22],[0,32,1,33],[0,35,1,36],[0,37,1,37],[0,38,1,38],[0,39,1,39],[2,0,2,6],[6,32,6,55],[8,0,8,3],[8,5,8,12],[8,13,8,15],[8,17,8,22],[8,24,12,29],[8,32,9,35],[11,36,12,54],[12,33,12,35],[10,46,10,49],[10,50,10,54],[18,1,19,6],[18,7,19,9],[18,10,19,12],[18,14,19,14],[18,15,19,27],[10,33,10,35],[10,37,10,39],[27,33,27,34],[17,28,17,29],[17,1,17,6],[17,7,17,9],[17,10,17,12],[17,15,17,27],[14,0,15,28],[14,33,15,37],[14,38,15,54],[10,0,10,1],[10,2,10,3],[10,4,10,5],[10,6,10,7],[10,8,10,9],[10,10,10,22],[11,3,12,11],[23,1,23,6],[23,7,23,9],[23,10,23,12],[23,15,23,27],[23,28,23,29],[20,33,21,37],[20,38,21,54],[21,1,21,6],[21,7,21,9],[21,10,21,12],[20,1,20,6],[20,7,20,9],[20,10,20,12],[20,15,20,27],[22,1,22,6],[22,7,22,9],[22,10,22,12],[22,15,22,27],[22,28,22,29],[21,15,21,27],[21,28,21,29],[20,28,20,29],[24,7,24,9],[24,10,24,12],[24,15,24,27],[24,28,24,29],[32,32,33,35],[25,0,26,0],[25,1,26,6],[25,7,26,9],[25,10,26,12],[25,14,26,14],[25,15,26,27],[25,28,26,29],[25,35,25,39],[29,1,29,6],[29,7,29,9],[29,10,29,12],[29,15,29,27],[29,28,29,29],[29,33,29,37],[29,38,29,54],[45,46,45,49],[30,1,30,6],[30,7,30,9],[30,10,30,12],[30,15,30,27],[30,28,30,29],[43,33,43,54],[27,1,27,6],[27,7,27,9],[27,10,27,12],[27,15,27,27],[27,28,27,29],[42,33,42,54],[27,35,27,39],[26,41,27,44],[26,45,27,50],[26,51,27,51],[26,52,27,53],[26,54,27,54],[47,33,47,34],[47,35,47,39],[47,45,47,50],[40,33,41,37],[40,38,41,54],[38,33,39,39],[38,40,39,54],[35,33,36,35],[41,0,42,13],[47,42,47,43],[42,15,42,27],[42,28,42,29],[35,36,36,54],[44,36,45,44],[44,50,45,54],[33,0,39,0],[33,1,39,6],[33,7,39,9],[33,10,39,12],[33,14,39,14],[33,15,39,27],[33,28,39,29],[45,33,45,34],[44,33,44,34],[17,33,17,35],[18,0,19,0],[17,37,18,54],[22,38,23,54],[22,33,23,37],[3,32,4,55],[43,14,44,14],[40,14,41,14],[40,15,41,27],[40,28,41,29],[43,15,44,27],[43,28,44,29],[34,33,34,35],[34,36,34,39],[31,14,32,14],[31,15,32,27],[31,28,32,29],[31,0,32,0],[31,1,32,6],[31,7,32,9],[31,10,32,12],[44,46,44,49],[18,28,19,29],[24,1,24,6]]}
[null,null,null,null,null,null,null,null,null,null,null,null,null,null,null,null,null,null,null,null,null,null,null,null,null,null,null,null,null,null,null,null,{"$f":"IF(I01_業者番号不明フラグ=TRUE,\"\",IF(ISBLANK(I01_業者番号記号), \"\", DBCS(I01_業者番号記号)))","v":"Ｂ"},null,null,{"$f":"IF(ISBLANK(I01_業者番号), \"\", MID(TEXT(VALUE(I01_業者番号),\"0000\"),1,1))","v":""},null,{"$f":"IF(ISBLANK(I01_業者番号), \"\", MID(TEXT(VALUE(I01_業者番号),\"0000\"),2,1))","v":""},{"$f":"IF(ISBLANK(I01_業者番号), \"\", MID(TEXT(VALUE(I01_業者番号),\"0000\"),3,1))","v":""},{"$f":"IF(ISBLANK(I01_業者番号), \"\", MID(TEXT(VALUE(I01_業者番号),\"0000\"),4,1))","v":""}]
[]
["那　覇　市　長　　　宛"]
[null,null,null,null,null,null,null,null,null,null,null,null,null,null,null,null,null,null,null,null,null,null,null,null,null,null,null,null,null,null,null,null,{"$f":"TEXT(申請年度01,\"ge\") & IF(申請区分=1,\"・\" & TEXT(申請年度02,\"e\"),\"\") & \"年度入札参加資格取得申請概要（その１）\"","v":"R7・8年度入札参加資格取得申請概要（その１）"}]
[]
[]
[null,null,null,null,null,null,null,null,null,null,null,null,null,null,null,null,null,null,null,null,null,null,null,null,null,null,null,null,null,null,null,null,"（漏水調査業務）"]
[]
["（フリガナ）",null,null,null,null,null,null,null,null,null,null,null,null,"（フリガナ）",null,null,null,null,null,null,null,null,null,null,null,null,null,null,null,null,null,null,"本店情報"]
[]
["所在地",null,null,null,"都道府県",null,null,null,"市区町村",null,null,null,null,null,null,null,null,null,null,null,null,null,null,null,null,null,null,null,null,null,null,null,null,"郵便番号",null,null,null,{"$f":"ASC(IF(OR(ISBLANK(I01_本店郵便番号01), ISBLANK(I01_本店郵便番号02)), \"\", TEXT(I01_本店郵便番号01,\"000\") & \"-\" & TEXT(I01_本店郵便番号02,\"0000\")))","v":""},null,null,null,null,null,null,null,null,"所在地区分",null,null,null,{"$f":"IF(ISBLANK(I01_本店都道府県コード),\"\",IF(I01_本店都道府県コード<>\"47 沖縄県\",\"県外\",IF(ISBLANK(I01_本店市町村コード),\"\",IF(I01_本店市町村コード=\"201 那覇市\",\"市内\",\"市外\"))))","v":""}]
[null,null,null,null,null,null,null,null,null,null,null,null,null,null,null,null,null,null,null,null,null,null,null,null,null,null,null,null,null,null,null,null,null,null,null,null,{"$f":"IF(ISBLANK(I01_本店都道府県名), \"\", IF(I01_本店都道府県コード=\"47 沖縄県\", \"\", I01_本店都道府県名)) & IF(ISBLANK(I01_本店市町村名),\"\",I01_本店市町村名) & IF(ISBLANK(I01_本店所在地), \"\", I01_本店所在地)","v":""}]
["本書持参者",null,null,null,null,null,null,null,null,null,null,null,"TEL",null,null,null,null,null,null,null,null,null,null,null,null,null,null,null,null,null,null,null,null,"所在地"]
[]
["  那覇市が発注する建設工事のうち、下の業種について入札参加資格を得たいので関係書類を添えて資格審査申請をいたします。",null,null,null,null,null,null,null,null,null,null,null,null,null,null,null,null,null,null,null,null,null,null,null,null,null,null,null,null,null,null,null,null,"（商号フリガナ）",null,null,null,null,{"$f":"ASC(IF(ISBLANK(I01_本店商号カナ), \"\", I01_本店商号カナ))","v":""}]
[]
["※ ●印が登録を希望する業種です。(ﾌﾟﾙﾀﾞｳﾝより選択）",null,null,null,null,null,null,null,null,null,null,null,null,null,"※ 提出書類は左側の□にﾁｪｯｸを入れてください。",null,null,null,null,null,null,null,null,null,null,null,null,null,null,null,null,null,null,"（法人形態は省略する。例「（株）那覇土木」だと、「ナハドボク」と記載する。）"]
[null,null,null,null,null,null,null,null,null,null,null,null,null,null,null,null,null,null,null,null,null,null,null,null,null,null,null,null,null,null,null,null,null,null,null,null,null,{"$f":"DBCS(IF(ISBLANK(I01_本店商号), \"\", I01_本店商号))","v":""}]
["○","03　大工",null,null,null,null,null,"○",null,null,"17　塗装",null,null,null,null,"建設業許可証明書",null,null,null,null,null,null,null,null,null,null,null,null,"□",null,null,null,null,"商　号　："]
[]
[null,null,null,null,null,null,null,null,null,null,null,null,null,null,null,null,null,null,null,null,null,null,null,null,null,null,null,null,null,null,null,null,null,"（代表者ﾌﾘｶﾞﾅ）",null,null,null,null,{"$f":"ASC(IF(ISBLANK(I01_本店代表者カナ), \"\", I01_本店代表者カナ))","v":""}]
["○","05　とび・土工",null,null,null,null,null,"○",null,null,"19　内装仕上",null,null,null,null,"技術職員有資格者名簿",null,null,null,null,null,null,null,null,null,null,null,null,"□"]
["○","06　石",null,null,null,null,null,"○",null,null,"20　機械器具設置",null,null,null,null,"工事経歴書",null,null,null,null,null,null,null,null,null,null,null,null,"□",null,null,null,null,"代 表 者",null,null,null,null,{"$f":"DBCS(IF(ISBLANK(I01_本店代表者名), \"\", I01_本店代表者名))","v":""}]
["○","07  屋根",null,null,null,null,null,"○",null,null,"21　熱絶縁",null,null,null,null,"登記簿謄本 （履歴事項全部証明書）                                                                                                                                                        （法人のみ）",null,null,null,null,null,null,null,null,null,null,null,null,"□"]
["○","08　電気",null,null,null,null,null,"○",null,null,"22　電気通信",null,null,null,null,"身分証明書・登記されていないことの証明書\n（個人事業者のみ）",null,null,null,null,null,null,null,null,null,null,null,null,"□"]
["○","09　管",null,null,null,null,null,"○",null,null,"23　造園",null,null,null,null,"本店等所在地位置図",null,null,null,null,null,null,null,null,null,null,null,null,"□",null,null,null,null,"TEL",null,{"$f":"ASC(IF(ISBLANK(I01_本店電話番号), \"\", I01_本店電話番号))","v":""}]
[null,null,null,null,null,null,null,null,null,null,null,null,null,null,null,null,null,null,null,null,null,null,null,null,null,null,null,null,null,null,null,null,null,null,null,null,null,null,null,null,null,"緊急連絡先\n（携帯電話）",null,null,null,{"$f":"ASC(IF(ISBLANK(I01_本店緊急連絡先), \"\", I01_本店緊急連絡先))","v":""},null,null,null,null,null,"（",{"$f":"IF(ISBLANK(I01_本店緊急連絡先氏名), \"\", I01_本店緊急連絡先氏名)","v":""},null,"）"]
["○","10　ﾀｲﾙ･ﾚﾝｶﾞ･ﾌﾞﾛｯｸ",null,null,null,null,null,"○",null,null,"24　さく井",null,null,null,null,"市税完納証明書（那覇市市民税課発行）",null,null,null,null,null,null,null,null,null,null,null,null,"□",null,null,null,null,"FAX",null,{"$f":"ASC(IF(ISBLANK(I01_本店FAX番号), \"\", I01_本店FAX番号))","v":""}]
[]
["○","05　とび・土工",null,null,null,null,null,"○",null,null,"19　内装仕上",null,null,null,null,"技術職員有資格者名簿",null,null,null,null,null,null,null,null,null,null,null,null,"□",null,null,null,null,"メールアドレス",null,null,null,null,{"$f":"ASC(LOWER(IF(ISBLANK(I01_本店メールアドレス), \"\", I01_本店メールアドレス)))","v":""}]
[]
["○","13　ほ装",null,null,null,null,null,"○",null,null,"27　消防施設",null,null,null,null,"労働保険証明書（県内事業者のみ）",null,null,null,null,null,null,null,null,null,null,null,null,"□"]
[null,null,null,null,null,null,null,null,null,null,null,null,null,null,null,null,null,null,null,null,null,null,null,null,null,null,null,null,null,null,null,null,"支店情報"]
["○","14　しゅんせつ",null,null,null,null,null,"○",null,null,"28　清掃施設",null,null,null,null,"健康保険・厚生年金（加入・納入）証明書\n（県内事業者のみ）",null,null,null,null,null,null,null,null,null,null,null,null,"□"]
[null,null,null,null,null,null,null,null,null,null,null,null,null,null,null,null,null,null,null,null,null,null,null,null,null,null,null,null,null,null,null,null,null,"郵便番号",null,null,{"$f":"ASC(IF(OR(ISBLANK(I01_支店郵便番号01), ISBLANK(I01_支店郵便番号02)), \"\", TEXT(I01_支店郵便番号01,\"000\") & \"-\" & TEXT(I01_支店郵便番号02,\"0000\")))","v":""}]
[null,null,null,null,null,null,null,null,null,null,null,null,null,null,null,null,null,null,null,null,null,null,null,null,null,null,null,null,null,null,null,null,null,"所在地",null,null,{"$f":"IF(ISBLANK(I01_支店都道府県名), \"\", IF(I01_支店都道府県コード=\"47 沖縄県\", \"\", I01_支店都道府県名)) & IF(ISBLANK(I01_支店市町村名),\"\",I01_支店市町村名) & IF(ISBLANK(I01_支店所在地), \"\", I01_支店所在地)","v":""}]
[]
[]
[null,null,null,null,null,null,null,null,null,null,null,null,null,null,null,null,null,null,null,null,null,null,null,null,null,null,null,null,null,null,null,null,null,"（支店・営業所フリガナ）",null,null,null,null,null,null,{"$f":"ASC(IF(ISBLANK(I01_支店商号カナ), \"\", I01_支店商号カナ))","v":""}]
[]
[null,null,null,null,null,null,null,null,null,null,null,null,null,null,null,"障害者雇用状況報告書",null,null,null,null,null,null,null,null,null,null,null,null,"□",null,null,null,null,"支店・営業所名",null,null,null,null,{"$f":"DBCS(IF(ISBLANK(I01_支店商号), \"\", I01_支店商号))","v":""}]
["※裏面の業種別データのコード欄には、上記各業種コードを記入してください。"]
[null,null,null,null,null,null,null,null,null,null,null,null,null,null,null,"納税証明書（法人税・消費税等）",null,null,null,null,null,null,null,null,null,null,null,null,"□",null,null,null,null,"（商号又は名称は省略し、支店・営業所名を記載する。例「（株）日本土木沖縄営業所」だと「沖縄営業所」と記載する。"]
[null,null,null,null,null,null,null,null,null,null,null,null,null,null,null,"82円切手（合否通知用）",null,null,null,null,null,null,null,null,null,null,null,null,"□"]
[null,null,null,null,null,null,null,null,null,null,null,null,null,null,null,null,null,null,null,null,null,null,null,null,null,null,null,null,null,null,null,null,null,"支店長",null,null,{"$f":"DBCS(IF(ISBLANK(I01_支店代表者名), \"\", I01_支店代表者名))","v":""},null,null,null,null,null,null,null,null,null,"（支店長フリガナ）",null,null,null,{"$f":"ASC(IF(ISBLANK(I01_支店代表者カナ), \"\", I01_支店代表者カナ))","v":""}]
[null,null,null,null,null,null,null,null,null,null,null,null,null,null,null,null,null,null,null,null,null,null,null,null,null,null,null,null,null,null,null,null,null,"所  長",null,null,null,null,null,null,null,null,null,null,null,null,"（所  長フリガナ）"]
[]
[null,null,null,null,null,null,null,null,null,null,null,null,null,null,null,null,null,null,null,null,null,null,null,null,null,null,null,null,null,null,null,null,null,"TEL",null,{"$f":"ASC(IF(ISBLANK(I01_支店電話番号), \"\", I01_支店電話番号))","v":""},null,null,null,null,null,null,"FAX",null,null,{"$f":"ASC(IF(ISBLANK(I01_支店FAX番号), \"\", I01_支店FAX番号))","v":""}]

{"sheet":"申請概要（その２）","index":5,"n_rows":39,"n_cols":46,"rows_kept":39,"cut":false,"hidden":true,"merged":[[1,24,2,46],[6,1,6,46],[13,8,13,15],[13,26,13,33],[0,1,2,4],[0,7,2,9],[0,10,2,12],[0,13,2,15],[0,16,2,18],[4,1,5,46],[11,11,11,20],[31,1,33,9],[34,1,36,9],[37,10,37,21],[21,1,21,21],[1,20,2,23],[15,8,15,11],[26,1,28,11],[20,1,20,21],[21,22,21,31],[22,22,22,31],[20,22,20,33],[21,32,21,33],[22,32,22,33],[16,19,17,21],[16,15,17,18],[16,2,17,14],[32,25,32,30],[26,34,26,44],[27,34,27,44],[28,34,28,44],[26,12,26,21],[27,12,27,21],[26,22,26,23],[27,22,27,23],[26,24,26,33],[27,24,27,33],[28,12,28,33],[38,10,38,19],[37,22,37,33],[38,22,38,31],[38,34,38,46],[22,1,22,21],[37,1,38,9],[35,19,35,23],[35,34,35,38],[35,27,35,32],[35,10,35,17],[32,11,32,13],[32,17,32,21],[37,34,37,46],[32,31,32,32],[32,14,32,15],[32,22,32,23]]}
[null,{"$f":"IF(I01_業者番号不明フラグ=TRUE,\"\",IF(ISBLANK(I01_業者番号記号), \"\", DBCS(I01_業者番号記号)))","v":"Ｂ"},null,null,null,null,null,{"$f":"IF(ISBLANK(I01_業者番号), \"\", MID(TEXT(VALUE(I01_業者番号),\"0000\"),1,1))","v":""},null,null,{"$f":"IF(ISBLANK(I01_業者番号), \"\", MID(TEXT(VALUE(I01_業者番号),\"0000\"),2,1))","v":""},null,null,{"$f":"IF(ISBLANK(I01_業者番号), \"\", MID(TEXT(VALUE(I01_業者番号),\"0000\"),3,1))","v":""},null,null,{"$f":"IF(ISBLANK(I01_業者番号), \"\", MID(TEXT(VALUE(I01_業者番号),\"0000\"),4,1))","v":""}]
[null,null,null,null,null,null,null,null,null,null,null,null,null,null,null,null,null,null,null,null,"商号：",null,null,null,{"$f":"DBCS(IF(ISBLANK(I01_本店商号), \"\", I01_本店商号))","v":""}]
[]
[]
[null,{"$f":"TEXT(申請年度01,\"ge\") & IF(申請区分=1,\"・\" & TEXT(申請年度02,\"e\"),\"\") & \"年度入札参加資格取得申請概要（その２）\"","v":"R7・8年度入札参加資格取得申請概要（その２）"}]
[]
[null,"（漏水調査業務）"]
[]
[]
[null,"経営規模等総括表登録内容"]
[]
[null,null,"大中小企業別",null,null,null,null,null,null,null,null,{"$f":"IF(ISBLANK(I02_大中小企業別),\"\",MID(I02_大中小企業別, 4, LEN(I02_大中小企業別)))","v":""}]
[]
[null,null,"資本金",null,null,null,null,null,{"$f":"IF(ISBLANK(I02_資本金), \"\", I02_資本金)","v":""},null,null,null,null,null,null,null,"（千円）",null,null,null,null,"自己資本",null,null,null,null,{"$f":"IF(ISBLANK(I02_自己資本), \"\", I02_自己資本)","v":""},null,null,null,null,null,null,null,"（千円）"]
[]
[null,null,"営業年数",null,null,null,null,null,{"$f":"IF(ISBLANK(I02_営業年数), \"\", I02_営業年数)","v":""},null,null,null,"年"]
[null,null,"（　那覇市内での営業年数",null,null,null,null,null,null,null,null,null,null,null,null,{"$f":"IF(ISBLANK(I02_市内営業年数), \"\", I02_市内営業年数)","v":""},null,null,null,"年　）"]
[null,null,null,null,null,null,null,null,null,null,null,null,null,null,null,null,null,null,null,null,null,null,"　※那覇市内で本店が現在営業している年数"]
[]
[]
[null,"資　　　格",null,null,null,null,null,null,null,null,null,null,null,null,null,null,null,null,null,null,null,null,"技術資格者数"]
[null,"漏水調査業務関係　実務経験７年以上",null,null,null,null,null,null,null,null,null,null,null,null,null,null,null,null,null,null,null,null,0,null,null,null,null,null,null,null,null,null,"人"]
[null,"漏水調査業務関係　実務経験１年以上",null,null,null,null,null,null,null,null,null,null,null,null,null,null,null,null,null,null,null,null,0,null,null,null,null,null,null,null,null,null,"人"]
[]
[]
[null,"事業所の概要"]
[null,"直前２年間実績高",null,null,null,null,null,null,null,null,null,null,{"$f":"IF(ISBLANK(I02_事業所概要開始日01), \"\", I02_事業所概要開始日01)","v":""},null,null,null,null,null,null,null,null,null,"～",null,{"$f":"IF(ISBLANK(I02_事業所概要終了日01), \"\", I02_事業所概要終了日01)","v":""},null,null,null,null,null,null,null,null,null,{"$f":"IF(ISBLANK(I02_事業所概要実績高01), \"\", I02_事業所概要実績高01)","v":""},null,null,null,null,null,null,null,null,null,null,"円"]
[null,null,null,null,null,null,null,null,null,null,null,null,{"$f":"IF(ISBLANK(I02_事業所概要開始日02), \"\", I02_事業所概要開始日02)","v":""},null,null,null,null,null,null,null,null,null,"～",null,{"$f":"IF(ISBLANK(I02_事業所概要終了日02), \"\", I02_事業所概要終了日02)","v":""},null,null,null,null,null,null,null,null,null,{"$f":"IF(ISBLANK(I02_事業所概要実績高02), \"\", I02_事業所概要実績高02)","v":""},null,null,null,null,null,null,null,null,null,null,"円"]
[null,null,null,null,null,null,null,null,null,null,null,null,"平　均",null,null,null,null,null,null,null,null,null,null,null,null,null,null,null,null,null,null,null,null,null,{"$f":"ROUNDDOWN(AVERAGE(AI27:AS28),0)","v":{"$error":"#DIV/0!"}},null,null,null,null,null,null,null,null,null,null,"円"]
[]
[]
[null,"保険等登録内容"]
[null,null,null,null,null,null,null,null,null,null,null,"労災",null,null,{"$f":"IF(ISBLANK(I02_労災),\"\",MID(I02_労災, 4, LEN(I02_労災)))","v":""},null,null,"雇用保険",null,null,null,null,{"$f":"IF(ISBLANK(I02_雇用保険),\"\",MID(I02_雇用保険, 4, LEN(I02_雇用保険)))","v":""},null,null,"健保・厚生",null,null,null,null,null,{"$f":"IF(ISBLANK(I02_健保厚生),\"\",MID(I02_健保厚生, 4, LEN(I02_健保厚生)))","v":""}]
[]
[null,"税登録内容"]
[null,null,null,null,null,null,null,null,null,null,"那 覇 市 課 税",null,null,null,null,null,null,null,null,{"$f":"IF(ISBLANK(I02_市課税),\"\",MID(I02_市課税, 4, LEN(I02_市課税)))","v":""},null,null,null,null,null,null,null,"消  費  税",null,null,null,null,null,null,{"$f":"IF(ISBLANK(I02_消費税),\"\",MID(I02_消費税, 4, LEN(I02_消費税)))","v":""}]
[]
[null,"雇用の規模及び\n障害者雇用人数",null,null,null,null,null,null,null,null,"雇用の規模",null,null,null,null,null,null,null,null,null,null,null,"常用雇用障害者の数",null,null,null,null,null,null,null,null,null,null,null,"障害者法定雇用義務の達成状況"]
[null,null,null,null,null,null,null,null,null,null,{"$f":"I02_雇用の規模","v":0},null,null,null,null,null,null,null,null,null,"人",null,{"$f":"I02_障害者雇用数","v":0},null,null,null,null,null,null,null,null,null,"人",null,{"$f":"IF(ISBLANK(I02_障害者雇用義務),\"\",MID(I02_障害者雇用義務, 4, LEN(I02_障害者雇用義務)) & IF(AND(障害者雇用義務従業員数 <= I02_雇用の規模,LEFT(I02_障害者雇用義務, 2)=\"09\"), ,\"\"))","v":"義務無し"}]

{"sheet":"技術者総括表","index":6,"n_rows":29,"n_cols":4,"rows_kept":29,"cut":false,"hidden":true,"merged":[[2,1,2,3],[6,2,6,3],[0,2,1,3],[8,0,8,1]]}
[null,null,{"$f":"I03_入力日","v":"2024-12-01"}]
[]
[null,"技　　　術　　　者　　　総　　　括　　　表"]
[null,null,null,{"$f":"\"商号又は名称 \"& I01_本店商号","v":"商号又は名称 "}]
[]
[]
[null,"　　　　　　　　　　資 格 区 分","漏水調査業務に関する実務経験"]
["\n№","  技術者氏名","７年以上","１年以上"]
["合　　計",null,{"$f":"COUNTIF($C$10,\"○\")","v":0},{"$f":"COUNTIF($D$10,\"○\")","v":0}]
[{"$f":"ROW() - 9","v":1}]
[2]
[3]
[4]
[5]
[6]
[7]
[8]
[9]
[10]
[11]
[12]
[13]
[14]
[15]
[16]
[17]
[18]
[19]
[20]

{"sheet":"マスタ","index":7,"n_rows":105,"n_cols":36,"rows_kept":105,"cut":false,"hidden":true,"merged":[]}
["各種設定",null,null,null,"都道府県マスタ","コード","都道府県名",null,"市町村マスタ","コード","市町村名",null,"委託業種マスタ","コード","名称",null,"業務内容マスタ","コード","名称",null,"業務内容\nドロップダウンリスト用クロス表",{"$f":"SUBSTITUTE(\"業務内容\" & M2, \" \", \"\")","v":"業務内容51測量"},{"$f":"SUBSTITUTE(\"業務内容\" & M3, \" \", \"\")","v":"業務内容52建築関係建設コンサルタント業務"},{"$f":"SUBSTITUTE(\"業務内容\" & M4, \" \", \"\")","v":"業務内容53土木関係建設コンサルタント業務"},{"$f":"SUBSTITUTE(\"業務内容\" & M5, \" \", \"\")","v":"業務内容54地質調査業務"},{"$f":"SUBSTITUTE(\"業務内容\" & M6, \" \", \"\")","v":"業務内容55補償関係コンサルタント"},{"$f":"SUBSTITUTE(\"業務内容\" & M7, \" \", \"\")","v":"業務内容56設備設計コンサルタント業務"},{"$f":"SUBSTITUTE(\"業務内容\" & M8, \" \", \"\")","v":"業務内容57磁気探査調査業務"},{"$f":"SUBSTITUTE(\"業務内容\" & M9, \" \", \"\")","v":"業務内容58気象関係コンサルタント業務"},{"$f":"SUBSTITUTE(\"業務内容\" & M10, \" \", \"\")","v":"業務内容61その他"},null,"資格区分マスタ","コード","資格名"]
["設定項目","設定値","入力方法・備考",null,{"$f":"TEXT(F2,\"00 \") & G2","v":"01 北海道"},1,"北海道",null,{"$f":"TEXT(J2,\"00 \") & K2","v":"201 那覇市"},201,"那覇市",null,{"$f":"TEXT(N2,\"00 \") & O2","v":"51 測量"},51,"測量",null,{"$f":"TEXT(R2,\"00 \") & S2","v":"5101 測量一般"},5101,"測量一般",null,null,{"$f":"Q2","v":"5101 測量一般"},{"$f":"Q6","v":"5201 建築一般"},{"$f":"Q12","v":"5301 土質及び基礎"},{"$f":"Q23","v":"5401 地質調査"},{"$f":"Q24","v":"5501 物件権利調査"},{"$f":"Q30","v":"5601 暖冷房"},{"$f":"Q36","v":"5701 磁気探査調査"},{"$f":"Q37","v":"5801 気象関係ｺﾝｻﾙﾀﾝﾄ"},{"$f":"Q38","v":"6101 その他"},null,{"$f":"TEXT(AG2,\"000 \") & AH2","v":"137 一級建築士"},137,"一級建築士","建築","一級建築士"]
["保護パスワード","7a8a","半角英数字で入力",null,{"$f":"TEXT(F3,\"00 \") & G3","v":"02 青森県"},2,"青森県",null,{"$f":"TEXT(J3,\"00 \") & K3","v":"205 宜野湾市"},205,"宜野湾市",null,{"$f":"TEXT(N3,\"00 \") & O3","v":"52 建築関係建設コンサルタント業務"},52,"建築関係建設コンサルタント業務",null,{"$f":"TEXT(R3,\"00 \") & S3","v":"5102 地図の調整"},5102,"地図の調整",null,null,{"$f":"Q3","v":"5102 地図の調整"},{"$f":"Q7","v":"5202 意匠"},{"$f":"Q13","v":"5302 鋼構造及びコンクリ－ト"},null,{"$f":"Q25","v":"5502 事業関連調査"},"5602 衛生",null,null,null,null,{"$f":"TEXT(AG3,\"000 \") & AH3","v":"078 設備設計一級建築士"},78,"設備設計一級建築士",null,"設備設計一級建築士"]
["入力項目背景色",null,null,null,"03 岩手県",3,"岩手県",null,"207 石垣市",207,"石垣市",null,"53 土木関係建設コンサルタント業務",53,"土木関係建設コンサルタント業務",null,"5103 航空測量",5103,"航空測量",null,null,"5103 航空測量","5203 構造","5303 河川砂防及び海岸・海洋",null,{"$f":"Q26","v":"5503 登記手続等"},"5603 電気",null,null,null,null,"079 構造設計一級建築士",79,"構造設計一級建築士",null,"構造設計一級建築士"]
["入力不可項目背景色",null,null,null,"04 宮城県",4,"宮城県",null,"208 浦添市",208,"浦添市",null,"54 地質調査業務",54,"地質調査業務",null,"5104 その他測量",5104,"その他測量",null,null,"5104 その他測量","5204 建築積算","5304 発電土木",null,{"$f":"Q27","v":"5504 営業補償"},"5604 機械設備積算",null,null,null,null,"238 二級建築士",238,"二級建築士",null,"二級建築士"]
["申請区分",1,"定期申請：1　　中間申請：2",null,"05 秋田県",5,"秋田県",null,"209 名護市",209,"名護市",null,"55 補償関係コンサルタント",55,"補償関係コンサルタント",null,"5201 建築一般",5201,"建築一般",null,null,null,"5205 調査","5305 道路",null,"5505 土地評価","5605 電気設備積算",null,null,null,null,"239 二級建築士",239,"二級建築士",null,"木造建築士"]
["申請年度１","2025-04-01","年度＋『４月１日で入力』",null,"06 山形県",6,"山形県",null,"210 糸満市",210,"糸満市",null,"56 設備設計コンサルタント業務",56,"設備設計コンサルタント業務",null,"5202 意匠",5202,"意匠",null,null,null,{"$f":"Q11","v":"5206 その他建築"},"5306 トンネル",null,"5506 その他補償","5606 その他設備",null,null,null,null,"062 建築設備士",62,"建築設備士",null,"その他資格者"]
["申請年度２","2026-04-01","年度＋『４月１日で入力』",null,"07 福島県",7,"福島県",null,"211 沖縄市",211,"沖縄市",null,"57 磁気探査調査業務",57,"磁気探査調査業務",null,"5203 構造",5203,"構造",null,null,null,null,"5307 施工計画及び施工設備",null,null,null,null,null,null,null,"064 建築構造士",64,"建築構造士"]
["障害者雇用義務従業員数",44,"障害者雇用が義務となる従業員数\nこの値「以上」を義務有として扱います",null,"08 茨城県",8,"茨城県",null,"212 豊見城市",212,"豊見城市",null,"58 気象関係コンサルタント業務",58,"気象関係コンサルタント業務",null,"5204 建築積算",5204,"建築積算",null,null,null,null,"5308 建設機械",null,null,null,null,null,null,null,"076 建築積算士（建築積算資格者）",76,"建築積算士（建築積算資格者）"]
[null,null,null,null,"09 栃木県",9,"栃木県",null,"213 うるま市",213,"うるま市",null,"61 その他",61,"その他",null,"5205 調査",5205,"調査",null,null,null,null,{"$f":"Q20","v":"5309 地質"},null,null,null,null,null,null,null,"080 建築コスト管理士",80,"建築コスト管理士"]
[null,null,null,null,"10 群馬県",10,"群馬県",null,"214 宮古島市",214,"宮古島市",null,null,null,null,null,"5206 その他建築",5206,"その他建築",null,null,null,null,"5310 造園",null,null,null,null,null,null,null,"082 耐震診断資格者",82,"耐震診断資格者"]
[null,null,null,null,"11 埼玉県",11,"埼玉県",null,"215 南城市",215,"南城市",null,null,null,null,null,"5301 土質及び基礎",5301,"土質及び基礎",null,null,null,null,{"$f":"Q22","v":"5311 その他土木"},null,null,null,null,null,null,null,"083 耐力度",83,"耐力度"]
[null,null,null,null,"12 千葉県",12,"千葉県",null,"301 国頭村",301,"国頭村",null,null,null,null,null,"5302 鋼構造及びコンクリ－ト",5302,"鋼構造及びコンクリ－ト",null,null,null,null,null,null,null,null,null,null,null,null,"107 測量士",107,"測量士","測量","測量士"]
[null,null,null,null,"13 東京都",13,"東京都",null,"302 大宜味村",302,"大宜味村",null,null,null,null,null,"5303 河川砂防及び海岸・海洋",5303,"河川砂防及び海岸・海洋",null,null,null,null,null,null,null,null,null,null,null,null,"208 測量士補",208,"測量士補",null,"測量士補"]
[null,null,null,null,"14 神奈川県",14,"神奈川県",null,"303 東村",303,"東村",null,null,null,null,null,"5304 発電土木",5304,"発電土木",null,null,"業務内容51測量","業務内容52建築関係建設コンサルタント業務","業務内容53土木関係建設コンサルタント業務","業務内容54地質調査業務","業務内容55補償関係コンサルタント","業務内容56設備設計コンサルタント業務","業務内容57磁気探査調査業務","業務内容58気象関係コンサルタント業務","業務内容61その他",null,"701 技術士：機械部門",701,"技術士：機械部門","土木","技術士"]
[null,null,null,null,"15 新潟県",15,"新潟県",null,"306 今帰仁村",306,"今帰仁村",null,null,null,null,null,"5305 道路",5305,"道路",null,null,null,null,null,null,null,null,null,null,null,null,"702 技術士：船舶・海洋部門",702,"技術士：船舶・海洋部門"]
[null,null,null,null,"16 富山県",16,"富山県",null,"308 本部町",308,"本部町",null,null,null,null,null,"5306 トンネル",5306,"トンネル",null,null,null,null,null,null,null,null,null,null,null,null,"703 技術士：航空・宇宙部門",703,"技術士：航空・宇宙部門"]
[null,null,null,null,"17 石川県",17,"石川県",null,"311 恩納村",311,"恩納村",null,null,null,null,null,"5307 施工計画及び施工設備",5307,"施工計画及び施工設備",null,null,null,null,null,null,null,null,null,null,null,null,"704 技術士：電気電子部門",704,"技術士：電気電子部門"]
[null,null,null,null,"18 福井県",18,"福井県",null,"313 宜野座村",313,"宜野座村",null,null,null,null,null,"5308 建設機械",5308,"建設機械",null,null,null,null,null,null,null,null,null,null,null,null,"705 技術士：化学部門",705,"技術士：化学部門"]
[null,null,null,null,"19 山梨県",19,"山梨県",null,"314 金武町",314,"金武町",null,null,null,null,null,"5309 地質",5309,"地質",null,null,null,null,null,null,null,null,null,null,null,null,"706 技術士：繊維部門",706,"技術士：繊維部門"]
[null,null,null,null,"20 長野県",20,"長野県",null,"315 伊江村",315,"伊江村",null,null,null,null,null,"5310 造園",5310,"造園",null,null,null,null,null,null,null,null,null,null,null,null,"707 技術士：金属部門",707,"技術士：金属部門"]
[null,null,null,null,"21 岐阜県",21,"岐阜県",null,"324 読谷村",324,"読谷村",null,null,null,null,null,"5311 その他土木",5311,"その他土木",null,null,null,null,null,null,null,null,null,null,null,null,"708 技術士：資源工学部門",708,"技術士：資源工学部門"]
[null,null,null,null,"22 静岡県",22,"静岡県",null,"325 嘉手納町",325,"嘉手納町",null,null,null,null,null,"5401 地質調査",5401,"地質調査",null,null,null,null,null,null,null,null,null,null,null,null,"710 技術士：上下水道部門",710,"技術士：上下水道部門"]
[null,null,null,null,"23 愛知県",23,"愛知県",null,"326 北谷町",326,"北谷町",null,null,null,null,null,"5501 物件権利調査",5501,"物件権利調査",null,null,null,null,null,null,null,null,null,null,null,null,"711 技術士：衛生工学部門",711,"技術士：衛生工学部門"]
[null,null,null,null,"24 三重県",24,"三重県",null,"327 北中城村",327,"北中城村",null,null,null,null,null,"5502 事業関連調査",5502,"事業関連調査",null,null,null,null,null,null,null,null,null,null,null,null,"712 技術士：農業部門",712,"技術士：農業部門"]
[null,null,null,null,"25 滋賀県",25,"滋賀県",null,"328 中城村",328,"中城村",null,null,null,null,null,"5503 登記手続等",5503,"登記手続等",null,null,null,null,null,null,null,null,null,null,null,null,"713 技術士：森林部門",713,"技術士：森林部門"]
[null,null,null,null,"26 京都府",26,"京都府",null,"329 西原町",329,"西原町",null,null,null,null,null,"5504 営業補償",5504,"営業補償",null,null,null,null,null,null,null,null,null,null,null,null,"714 技術士：水産部門",714,"技術士：水産部門"]
[null,null,null,null,"27 大阪府",27,"大阪府",null,"348 与那原町",348,"与那原町",null,null,null,null,null,"5505 土地評価",5505,"土地評価",null,null,null,null,null,null,null,null,null,null,null,null,"715 技術士：経営工学部門",715,"技術士：経営工学部門"]
[null,null,null,null,"28 兵庫県",28,"兵庫県",null,"350 南風原町",350,"南風原町",null,null,null,null,null,"5506 その他補償",5506,"その他補償",null,null,null,null,null,null,null,null,null,null,null,null,"716 技術士：情報工学部門",716,"技術士：情報工学部門"]
[null,null,null,null,"29 奈良県",29,"奈良県",null,"353 渡嘉敷村",353,"渡嘉敷村",null,null,null,null,null,"5601 暖冷房",5601,"暖冷房",null,null,null,null,null,null,null,null,null,null,null,null,"717 技術士：応用理学部門",717,"技術士：応用理学部門"]
[null,null,null,null,"30 和歌山県",30,"和歌山県",null,"354 座間味村",354,"座間味村",null,null,null,null,null,"5602 衛生",5602,"衛生",null,null,null,null,null,null,null,null,null,null,null,null,"718 技術士：生物工学部門",718,"技術士：生物工学部門"]
[null,null,null,null,"31 鳥取県",31,"鳥取県",null,"355 粟国村",355,"粟国村",null,null,null,null,null,"5603 電気",5603,"電気",null,null,null,null,null,null,null,null,null,null,null,null,"719 技術士：環境部門",719,"技術士：環境部門"]
[null,null,null,null,"32 島根県",32,"島根県",null,"356 渡名喜村",356,"渡名喜村",null,null,null,null,null,"5604 機械設備積算",5604,"機械設備積算",null,null,null,null,null,null,null,null,null,null,null,null,"720 技術士：原子力・放射線部門",720,"技術士：原子力・放射線部門"]
[null,null,null,null,"33 岡山県",33,"岡山県",null,"357 南大東村",357,"南大東村",null,null,null,null,null,"5605 電気設備積算",5605,"電気設備積算",null,null,null,null,null,null,null,null,null,null,null,null,"721 技術士：総合技術監理部門",721,"技術士：総合技術監理部門"]
[null,null,null,null,"34 広島県",34,"広島県",null,"358 北大東村",358,"北大東村",null,null,null,null,null,"5606 その他設備",5606,"その他設備",null,null,null,null,null,null,null,null,null,null,null,null,"722 技術士：建設部門（土質及び基礎）",722,"技術士：建設部門（土質及び基礎）"]
[null,null,null,null,"35 山口県",35,"山口県",null,"359 伊平屋村",359,"伊平屋村",null,null,null,null,null,"5701 磁気探査調査",5701,"磁気探査調査",null,null,null,null,null,null,null,null,null,null,null,null,"723 技術士：建設部門（鋼構造及びコンクリート）",723,"技術士：建設部門（鋼構造及びコンクリート）"]
[null,null,null,null,"36 徳島県",36,"徳島県",null,"360 伊是名村",360,"伊是名村",null,null,null,null,null,"5801 気象関係ｺﾝｻﾙﾀﾝﾄ",5801,"気象関係ｺﾝｻﾙﾀﾝﾄ",null,null,null,null,null,null,null,null,null,null,null,null,"724 技術士：建設部門（都市及び地方計画）",724,"技術士：建設部門（都市及び地方計画）"]
[null,null,null,null,"37 香川県",37,"香川県",null,"361 久米島町",361,"久米島町",null,null,null,null,null,"6101 その他",6101,"その他",null,null,null,null,null,null,null,null,null,null,null,null,"725 技術士：建設部門（河川、砂防及び海岸・海洋）",725,"技術士：建設部門（河川、砂防及び海岸・海洋）"]
[null,null,null,null,"38 愛媛県",38,"愛媛県",null,"362 八重瀬町",362,"八重瀬町",null,null,null,null,null,null,null,null,null,null,null,null,null,null,null,null,null,null,null,null,"726 技術士：建設部門（港湾及び空港）",726,"技術士：建設部門（港湾及び空港）"]
[null,null,null,null,"39 高知県",39,"高知県",null,"375 多良間村",375,"多良間村",null,null,null,null,null,null,null,null,null,null,null,null,null,null,null,null,null,null,null,null,"727 技術士：建設部門（電力土木）",727,"技術士：建設部門（電力土木）"]
[null,null,null,null,"40 福岡県",40,"福岡県",null,"381 竹富町",381,"竹富町",null,null,null,null,null,null,null,null,null,null,null,null,null,null,null,null,null,null,null,null,"728 技術士：建設部門（道路）",728,"技術士：建設部門（道路）"]
[null,null,null,null,"41 佐賀県",41,"佐賀県",null,"382 与那国町",382,"与那国町",null,null,null,null,null,null,null,null,null,null,null,null,null,null,null,null,null,null,null,null,"729 技術士：建設部門（鉄道）",729,"技術士：建設部門（鉄道）"]
[null,null,null,null,"42 長崎県",42,"長崎県",null,null,null,null,null,null,null,null,null,null,null,null,null,null,null,null,null,null,null,null,null,null,null,null,"730 技術士：建設部門（トンネル）",730,"技術士：建設部門（トンネル）"]
[null,null,null,null,"43 熊本県",43,"熊本県",null,null,null,null,null,null,null,null,null,null,null,null,null,null,null,null,null,null,null,null,null,null,null,null,"731 技術士：建設部門（施工計画、施工設備及び積算）",731,"技術士：建設部門（施工計画、施工設備及び積算）"]
[null,null,null,null,"44 大分県",44,"大分県",null,null,null,null,null,null,null,null,null,null,null,null,null,null,null,null,null,null,null,null,null,null,null,null,"732 技術士：建設部門（建設環境）",732,"技術士：建設部門（建設環境）"]
[null,null,null,null,"45 宮崎県",45,"宮崎県",null,null,null,null,null,null,null,null,null,null,null,null,null,null,null,null,null,null,null,null,null,null,null,null,"751 RCCM：河川、砂防及び海岸・海洋部門",751,"RCCM：河川、砂防及び海岸・海洋部門",null,"RCCM"]
[null,null,null,null,"46 鹿児島県",46,"鹿児島県",null,null,null,null,null,null,null,null,null,null,null,null,null,null,null,null,null,null,null,null,null,null,null,null,"752 RCCM：港湾及び空港部門",752,"RCCM：港湾及び空港部門"]
[null,null,null,null,"47 沖縄県",47,"沖縄県",null,null,null,null,null,null,null,null,null,null,null,null,null,null,null,null,null,null,null,null,null,null,null,null,"753 RCCM：電力土木部門",753,"RCCM：電力土木部門"]
[null,null,null,null,null,null,null,null,null,null,null,null,null,null,null,null,null,null,null,null,null,null,null,null,null,null,null,null,null,null,null,"754 RCCM：道路部門",754,"RCCM：道路部門"]
[null,null,null,null,null,null,null,null,null,null,null,null,null,null,null,null,null,null,null,null,null,null,null,null,null,null,null,null,null,null,null,"755 RCCM：鉄道部門",755,"RCCM：鉄道部門"]
[null,null,null,null,null,null,null,null,null,null,null,null,null,null,null,null,null,null,null,null,null,null,null,null,null,null,null,null,null,null,null,"756 RCCM：上水道及び工業用水道部門",756,"RCCM：上水道及び工業用水道部門"]
[null,null,null,null,null,null,null,null,null,null,null,null,null,null,null,null,null,null,null,null,null,null,null,null,null,null,null,null,null,null,null,"757 RCCM：下水道部門",757,"RCCM：下水道部門"]
[null,null,null,null,null,null,null,null,null,null,null,null,null,null,null,null,null,null,null,null,null,null,null,null,null,null,null,null,null,null,null,"758 RCCM：農業土木部門",758,"RCCM：農業土木部門"]
[null,null,null,null,null,null,null,null,null,null,null,null,null,null,null,null,null,null,null,null,null,null,null,null,null,null,null,null,null,null,null,"759 RCCM：森林土木部門",759,"RCCM：森林土木部門","土木","RCCM"]
[null,null,null,null,null,null,null,null,null,null,null,null,null,null,null,null,null,null,null,null,null,null,null,null,null,null,null,null,null,null,null,"760 RCCM：水産土木部門",760,"RCCM：水産土木部門"]
[null,null,null,null,null,null,null,null,null,null,null,null,null,null,null,null,null,null,null,null,null,null,null,null,null,null,null,null,null,null,null,"761 RCCM：廃棄物部門",761,"RCCM：廃棄物部門"]
[null,null,null,null,null,null,null,null,null,null,null,null,null,null,null,null,null,null,null,null,null,null,null,null,null,null,null,null,null,null,null,"762 RCCM：造園部門",762,"RCCM：造園部門"]
[null,null,null,null,null,null,null,null,null,null,null,null,null,null,null,null,null,null,null,null,null,null,null,null,null,null,null,null,null,null,null,"763 RCCM：都市計画及び地方計画部門",763,"RCCM：都市計画及び地方計画部門"]
[null,null,null,null,null,null,null,null,null,null,null,null,null,null,null,null,null,null,null,null,null,null,null,null,null,null,null,null,null,null,null,"764 RCCM：地質部門",764,"RCCM：地質部門"]
[null,null,null,null,null,null,null,null,null,null,null,null,null,null,null,null,null,null,null,null,null,null,null,null,null,null,null,null,null,null,null,"765 RCCM：土質及び基礎部門",765,"RCCM：土質及び基礎部門"]
[null,null,null,null,null,null,null,null,null,null,null,null,null,null,null,null,null,null,null,null,null,null,null,null,null,null,null,null,null,null,null,"766 RCCM：鋼構造物及びコンクリート部門",766,"RCCM：鋼構造物及びコンクリート部門"]
[null,null,null,null,null,null,null,null,null,null,null,null,null,null,null,null,null,null,null,null,null,null,null,null,null,null,null,null,null,null,null,"767 RCCM：トンネル部門",767,"RCCM：トンネル部門"]
[null,null,null,null,null,null,null,null,null,null,null,null,null,null,null,null,null,null,null,null,null,null,null,null,null,null,null,null,null,null,null,"768 RCCM：施工計画、施工設備及び積算部門",768,"RCCM：施工計画、施工設備及び積算部門"]
[null,null,null,null,null,null,null,null,null,null,null,null,null,null,null,null,null,null,null,null,null,null,null,null,null,null,null,null,null,null,null,"769 RCCM：建設環境部門",769,"RCCM：建設環境部門"]
[null,null,null,null,null,null,null,null,null,null,null,null,null,null,null,null,null,null,null,null,null,null,null,null,null,null,null,null,null,null,null,"770 RCCM：機械部門",770,"RCCM：機械部門"]
[null,null,null,null,null,null,null,null,null,null,null,null,null,null,null,null,null,null,null,null,null,null,null,null,null,null,null,null,null,null,null,"771 RCCM：電気電子部門",771,"RCCM：電気電子部門"]
[null,null,null,null,null,null,null,null,null,null,null,null,null,null,null,null,null,null,null,null,null,null,null,null,null,null,null,null,null,null,null,{"$f":"TEXT(AG67,\"000 \") & AH67","v":"113 一級土木施工管理技士"},113,"一級土木施工管理技士",null,"一級土木施工管理技士"]
[null,null,null,null,null,null,null,null,null,null,null,null,null,null,null,null,null,null,null,null,null,null,null,null,null,null,null,null,null,null,null,"214 二級土木施工管理技士（土木）",214,"二級土木施工管理技士（土木）",null,"二級土木施工管理技士"]
[null,null,null,null,null,null,null,null,null,null,null,null,null,null,null,null,null,null,null,null,null,null,null,null,null,null,null,null,null,null,null,"215 二級土木施工管理技士(鋼構造物塗装）",215,"二級土木施工管理技士(鋼構造物塗装）"]
[null,null,null,null,null,null,null,null,null,null,null,null,null,null,null,null,null,null,null,null,null,null,null,null,null,null,null,null,null,null,null,"216 二級土木施工管理技士(薬液注入）",216,"二級土木施工管理技士(薬液注入）"]
[null,null,null,null,null,null,null,null,null,null,null,null,null,null,null,null,null,null,null,null,null,null,null,null,null,null,null,null,null,null,null,"061 地すべり防止工事士",61,"地すべり防止工事士",null,"その他資格者"]
[null,null,null,null,null,null,null,null,null,null,null,null,null,null,null,null,null,null,null,null,null,null,null,null,null,null,null,null,null,null,null,"081 コンクリート診断士",81,"コンクリート診断士"]
[null,null,null,null,null,null,null,null,null,null,null,null,null,null,null,null,null,null,null,null,null,null,null,null,null,null,null,null,null,null,null,"127 一級電気工事施工管理技士",127,"一級電気工事施工管理技士","設備","電気系資格者"]
[null,null,null,null,null,null,null,null,null,null,null,null,null,null,null,null,null,null,null,null,null,null,null,null,null,null,null,null,null,null,null,"228 二級電気工事施工管理技士",228,"二級電気工事施工管理技士"]
[null,null,null,null,null,null,null,null,null,null,null,null,null,null,null,null,null,null,null,null,null,null,null,null,null,null,null,null,null,null,null,"155 第一種電気工事士",155,"第一種電気工事士"]
[null,null,null,null,null,null,null,null,null,null,null,null,null,null,null,null,null,null,null,null,null,null,null,null,null,null,null,null,null,null,null,"256 第二種電気工事士",256,"第二種電気工事士"]
[null,null,null,null,null,null,null,null,null,null,null,null,null,null,null,null,null,null,null,null,null,null,null,null,null,null,null,null,null,null,null,"258 電気主任技術者（第１種～第３種）",258,"電気主任技術者（第１種～第３種）"]
[null,null,null,null,null,null,null,null,null,null,null,null,null,null,null,null,null,null,null,null,null,null,null,null,null,null,null,null,null,null,null,"268 甲種消防設備士（第四類）",268,"甲種消防設備士（第四類）"]
[null,null,null,null,null,null,null,null,null,null,null,null,null,null,null,null,null,null,null,null,null,null,null,null,null,null,null,null,null,null,null,"269 乙種消防設備士（第四類及び第七類）",269,"乙種消防設備士（第四類及び第七類）"]
[null,null,null,null,null,null,null,null,null,null,null,null,null,null,null,null,null,null,null,null,null,null,null,null,null,null,null,null,null,null,null,"063 １級計装士　※その他に記入してください。",63,"１級計装士　※その他に記入してください。"]
[null,null,null,null,null,null,null,null,null,null,null,null,null,null,null,null,null,null,null,null,null,null,null,null,null,null,null,null,null,null,null,"129 一級管工事施工管理技士",129,"一級管工事施工管理技士",null,"機械系資格者"]
[null,null,null,null,null,null,null,null,null,null,null,null,null,null,null,null,null,null,null,null,null,null,null,null,null,null,null,null,null,null,null,"230 二級管工事施工管理技士",230,"二級管工事施工管理技士"]
[null,null,null,null,null,null,null,null,null,null,null,null,null,null,null,null,null,null,null,null,null,null,null,null,null,null,null,null,null,null,null,"168 甲種消防設備士（第四類を除く）",168,"甲種消防設備士（第四類を除く）"]
[null,null,null,null,null,null,null,null,null,null,null,null,null,null,null,null,null,null,null,null,null,null,null,null,null,null,null,null,null,null,null,"169 乙種消防設備士（第四類及び第七類を除く）",169,"乙種消防設備士（第四類及び第七類を除く）"]
[null,null,null,null,null,null,null,null,null,null,null,null,null,null,null,null,null,null,null,null,null,null,null,null,null,null,null,null,null,null,null,"265 給水装置工事主任技術者",265,"給水装置工事主任技術者"]
[null,null,null,null,null,null,null,null,null,null,null,null,null,null,null,null,null,null,null,null,null,null,null,null,null,null,null,null,null,null,null,"071 不動産鑑定士",71,"不動産鑑定士","補償","不動産鑑定士"]
[null,null,null,null,null,null,null,null,null,null,null,null,null,null,null,null,null,null,null,null,null,null,null,null,null,null,null,null,null,null,null,"098 土地家屋調査士",98,"土地家屋調査士",null,"土地家屋調査士"]
[null,null,null,null,null,null,null,null,null,null,null,null,null,null,null,null,null,null,null,null,null,null,null,null,null,null,null,null,null,null,null,"801 補償業務管理士：土地調査部門",801,"補償業務管理士：土地調査部門",null,"補償業務管理士"]
[null,null,null,null,null,null,null,null,null,null,null,null,null,null,null,null,null,null,null,null,null,null,null,null,null,null,null,null,null,null,null,"802 補償業務管理士：土地評価部門",802,"補償業務管理士：土地評価部門"]
[null,null,null,null,null,null,null,null,null,null,null,null,null,null,null,null,null,null,null,null,null,null,null,null,null,null,null,null,null,null,null,"803 補償業務管理士：物件部門",803,"補償業務管理士：物件部門"]
[null,null,null,null,null,null,null,null,null,null,null,null,null,null,null,null,null,null,null,null,null,null,null,null,null,null,null,null,null,null,null,"804 補償業務管理士：機械工作物部門",804,"補償業務管理士：機械工作物部門"]
[null,null,null,null,null,null,null,null,null,null,null,null,null,null,null,null,null,null,null,null,null,null,null,null,null,null,null,null,null,null,null,"805 補償業務管理士：営業補償・特殊補償部門",805,"補償業務管理士：営業補償・特殊補償部門"]
[null,null,null,null,null,null,null,null,null,null,null,null,null,null,null,null,null,null,null,null,null,null,null,null,null,null,null,null,null,null,null,"806 補償業務管理士：事業損失部門",806,"補償業務管理士：事業損失部門"]
[null,null,null,null,null,null,null,null,null,null,null,null,null,null,null,null,null,null,null,null,null,null,null,null,null,null,null,null,null,null,null,"807 補償業務管理士：補償関連部門",807,"補償業務管理士：補償関連部門"]
[null,null,null,null,null,null,null,null,null,null,null,null,null,null,null,null,null,null,null,null,null,null,null,null,null,null,null,null,null,null,null,"808 補償業務管理士：総合補償部門",808,"補償業務管理士：総合補償部門"]
[null,null,null,null,null,null,null,null,null,null,null,null,null,null,null,null,null,null,null,null,null,null,null,null,null,null,null,null,null,null,null,"073 土地区画整理士",73,"土地区画整理士",null,"土地区画整理士"]
[null,null,null,null,null,null,null,null,null,null,null,null,null,null,null,null,null,null,null,null,null,null,null,null,null,null,null,null,null,null,null,"099 ―",99,"―",null,"公共用地取得実務経験者"]
[null,null,null,null,null,null,null,null,null,null,null,null,null,null,null,null,null,null,null,null,null,null,null,null,null,null,null,null,null,null,null,"074 地質調査技士",74,"地質調査技士","地質調査","地質調査技士"]
[null,null,null,null,null,null,null,null,null,null,null,null,null,null,null,null,null,null,null,null,null,null,null,null,null,null,null,null,null,null,null,"075 環境計量士",75,"環境計量士",null,"環境計量士"]
[null,null,null,null,null,null,null,null,null,null,null,null,null,null,null,null,null,null,null,null,null,null,null,null,null,null,null,null,null,null,null,"077 港湾海洋調査士（危険物探査部門）",77,"港湾海洋調査士（危険物探査部門）",null,"港湾海洋調査士"]
[null,null,null,null,null,null,null,null,null,null,null,null,null,null,null,null,null,null,null,null,null,null,null,null,null,null,null,null,null,null,null,"107 測量士",107,"測量士","磁気探査","測量士"]
[null,null,null,null,null,null,null,null,null,null,null,null,null,null,null,null,null,null,null,null,null,null,null,null,null,null,null,null,null,null,null,"208 測量士補",208,"測量士補",null,"測量士補"]
[null,null,null,null,null,null,null,null,null,null,null,null,null,null,null,null,null,null,null,null,null,null,null,null,null,null,null,null,null,null,null,"074 地質調査技士",74,"地質調査技士",null,"地質調査技士"]
[null,null,null,null,null,null,null,null,null,null,null,null,null,null,null,null,null,null,null,null,null,null,null,null,null,null,null,null,null,null,null,"072 磁気探査技士",72,"磁気探査技士",null,"磁気探査技士"]
[null,null,null,null,null,null,null,null,null,null,null,null,null,null,null,null,null,null,null,null,null,null,null,null,null,null,null,null,null,null,null,"077 港湾海洋調査士：危険物調査部門",77,"港湾海洋調査士：危険物調査部門",null,"港湾海洋調査士"]

{"sheet":"マクロ有効化案内","index":8,"n_rows":9,"n_cols":2,"rows_kept":9,"cut":false,"hidden":false,"merged":[]}
[]
[null,"【注意事項】"]
[]
[null,"Excelのマクロを利用して申請書等を作成する仕組みになっています。"]
[]
[null,"※マクロを有効にしないと正しく入力できません。"]
[null,"　必ず入力前にマクロを有効にしてください。"]
[]
[null,"【Excel2010の場合】"]

{"sheet":"資格者集計ワーク","index":9,"n_rows":0,"n_cols":0,"rows_kept":0,"cut":false,"hidden":true,"merged":[]}